fUST/lending_fUST_20241111
["ID","MTS","AMOUNT","RATE_DAILY","PERIOD"]
[341884487,1731267043412,-500.0,0.00024931,2]
[341884488,1731267043423,-500.0,0.00024931,2]
[341884489,1731267043433,-2086.67,0.00024931,2]
[341884490,1731267043443,-509.52731785,0.00024931,2]
[341884491,1731267043452,-500.0,0.00024931,2]
[341884492,1731267043462,-500.0,0.00024931,2]
[341884493,1731267043472,-839.83,0.00024931,2]
[341884494,1731267043482,-500.0,0.00024931,2]
[341884495,1731267043491,-500.0,0.00024931,2]
[341884496,1731267043500,-500.0,0.00024931,2]
[341884497,1731267043510,-500.0,0.00024931,2]
[341884498,1731267043519,-500.0,0.00024931,2]
[341884499,1731267043528,-500.0,0.00024931,2]
[341884500,1731267043538,-500.0,0.00024931,2]
[341884501,1731267043547,-1127.3,0.00024931,2]
[341884502,1731267043557,-2704.01,0.00024931,2]
[341884503,1731267043566,-500.0,0.00024931,2]
[341884504,1731267043576,-500.0,0.00024931,2]
[341884505,1731267043585,-328.09861926,0.00024931,2]
[341884506,1731267043595,-500.0,0.00024931,2]
[341884507,1731267043604,-965.25,0.00024931,2]
[341884508,1731267043613,-500.0,0.00024931,2]
[341884510,1731267043622,-500.0,0.00024931,2]
[341884512,1731267043631,-735.22,0.00024931,2]
[341884514,1731267043641,-3331.53,0.00024931,2]
[341884516,1731267043650,-500.0,0.00024931,2]
[341884517,1731267043659,-500.0,0.00024931,2]
[341884519,1731267043668,-570.02,0.00024931,2]
[341884521,1731267043680,-500.0,0.00024931,2]
[341884522,1731267043689,-500.0,0.00024931,2]
[341884524,1731267043698,-4792.36,0.00024931,2]
[341884526,1731267043708,-441.57384859,0.00024931,2]
[341884528,1731267043717,-500.0,0.00024931,2]
[341884530,1731267043727,-500.0,0.00024931,2]
[341884531,1731267043736,-794.69,0.00024931,2]
[341884533,1731267043745,-531.04,0.00024931,2]
[341884534,1731267043754,-767.86,0.00024931,2]
[341884535,1731267043764,-10930.64,0.00024931,2]
[341884536,1731267043773,-500.0,0.00024931,2]
[341884537,1731267043783,-500.0,0.00024931,2]
[341884538,1731267043792,-500.0,0.00024931,2]
[341884539,1731267043801,-1115.55,0.00024931,2]
[341884540,1731267043810,-500.0,0.00024931,2]
[341884541,1731267043820,-500.0,0.00024931,2]
[341884542,1731267043829,-1040.83,0.00024931,2]
[341884543,1731267043838,-500.0,0.00024931,2]
[341884544,1731267043848,-500.0,0.00024931,2]
[341884545,1731267043857,-434.0,0.00024932,2]
[341884546,1731267043866,-192.0,0.00024932,2]
[341884548,1731267043876,-588.21778384,0.00024973,2]
[341884550,1731267043885,-500.0,0.00024973,2]
[341884551,1731267043894,-500.46639605,0.00024973,2]
[341884553,1731267043904,-502.24799457,0.00024973,2]
[341884555,1731267043913,-500.0,0.00024973,2]
[341884557,1731267043924,-500.0,0.00024973,2]
[341884558,1731267043933,-526.25020036,0.00024973,2]
[341884559,1731267043943,-500.0,0.00024973,2]
[341884560,1731267043952,-500.0,0.00024973,2]
[341884561,1731267043961,-500.0,0.00024973,2]
[341884562,1731267043970,-502.41505175,0.00024973,2]
[341884563,1731267043980,-500.0,0.00024973,2]
[341884564,1731267043990,-500.0,0.00024973,2]
[341884565,1731267043999,-500.0,0.00024973,2]
[341884566,1731267044009,-500.0,0.00024973,2]
[341884568,1731267044019,-334.06434581,0.00024999,2]
[341884569,1731267044028,-471.83014834,0.00024999,2]
[341884570,1731267044038,-500.0,0.00024999,2]
[341884571,1731267044047,-499.63717337,0.00024999,2]
[341884572,1731267044056,-494.38278555,0.00024999,2]
[341884573,1731267044066,-500.0,0.00024999,2]
[341884574,1731267044075,-500.0,0.00024999,2]
[341884575,1731267044084,-262.89352248,0.00024999,2]
[341884576,1731267044094,-500.0,0.00024999,2]
[341884577,1731267044103,-500.0,0.00024999,2]
[341884578,1731267044113,-500.0,0.00024999,2]
[341884579,1731267044122,-500.0,0.00024999,2]
[341884580,1731267044134,-500.0,0.00024999,2]
[341884581,1731267044143,-326.88054088,0.00024999,2]
[341884582,1731267044153,-500.0,0.00024999,2]
[341884583,1731267044163,-332.85712878,0.00024999,2]
[341884584,1731267044174,-434.0,0.00025,2]
[341884585,1731267044185,-202.0,0.00025,2]
[341884586,1731267044195,-159.0,0.00025,2]
[341884587,1731267044204,-1040.06511796,0.00025,2]
[341884588,1731267044213,-238078.24716656,0.00025,2]
[341884589,1731267044232,-44903.91000006,0.00025,2]
[341884590,1731267044262,-500.0,0.00024657,2]
[341884591,1731267044271,-164.20356414,0.00024925,2]
[341884592,1731267044281,-1004.54839544,0.00025,2]
[341884593,1731267044292,-557.59421,0.00025,2]
[341884594,1731267044303,-2303.5786,0.00025,2]
[341884595,1731267044496,-352.48840326,0.00024657,2]
[341884596,1731267044506,-500.0,0.00024925,2]
[341884597,1731267044516,-500.0,0.00024925,2]
[341884598,1731267044526,-500.0,0.00024925,2]
[341884599,1731267044536,-500.0,0.00024925,2]
[341884600,1731267044545,-500.0,0.00024925,2]
[341884601,1731267044555,-500.0,0.00024925,2]
[341884602,1731267044564,-275.39353993,0.00025,2]
[341884603,1731267044575,-938.412779,0.00025,2]
[341884604,1731267044588,-1017.07955512,0.00025,2]
[341884605,1731267044631,-500.0,0.00024973,2]
[341884606,1731267044640,-134119.97398658,0.00025,2]
[341884607,1731267044652,-63061.77305587,0.00025,2]
[341884608,1731267044664,-165308.59311291,0.00025,2]
[341884609,1731267044678,-4025.73778955,0.00025,2]
[341884610,1731267044690,-5938.48710113,0.00025,2]
[341884611,1731267044702,-10243.11464808,0.00025,2]
[341884612,1731267044714,-24377.63673765,0.00025,2]
[341884613,1731267044724,-394.35718864,0.00025,2]
[341884614,1731267044734,-8997.69871104,0.00025,2]
[341884615,1731267044743,-346.5930488,0.00025,2]
[341884616,1731267044753,-827.55393526,0.00025,2]
[341884617,1731267044763,-192.0,0.00025,2]
[341884618,1731267044773,-105226.82408286,0.00025,2]
[341884619,1731267044782,-153.0,0.00025027,2]
[341884620,1731267044792,-153.0,0.00025027,2]
[341884621,1731267044801,-153.0,0.00025027,2]
[341884622,1731267044811,-153.0,0.00025027,2]
[341884623,1731267044821,-153.0,0.00025027,2]
[341884624,1731267044831,-153.0,0.00025027,2]
[341884625,1731267044841,-153.0,0.00025027,2]
[341884626,1731267044850,-153.0,0.00025027,2]
[341884627,1731267044859,-153.0,0.00025027,2]
[341884628,1731267044868,-153.0,0.00025027,2]
[341884629,1731267044877,-153.0,0.00025027,2]
[341884630,1731267044887,-153.0,0.00025027,2]
[341884631,1731267044896,-500.0,0.00025029,2]
[341884632,1731267044905,-153.0,0.0002503,2]
[341884633,1731267044914,-153.0,0.0002503,2]
[341884634,1731267044924,-153.0,0.0002503,2]
[341884635,1731267044933,-153.0,0.0002503,2]
[341884636,1731267044945,-153.0,0.0002503,2]
[341884637,1731267044957,-153.0,0.0002503,2]
[341884638,1731267044968,-153.0,0.0002503,2]
[341884639,1731267044977,-153.0,0.0002503,2]
[341884640,1731267044986,-153.0,0.0002503,2]
[341884641,1731267044995,-212.0390805,0.00025041,2]
[341884642,1731267045005,-153.0,0.00025041,2]
[341884643,1731267045015,-153.0,0.00025041,2]
[341884644,1731267045024,-303.7049688,0.00025041,2]
[341884645,1731267045034,-212.0390805,0.00025041,2]
[341884646,1731267045043,-303.7049688,0.00025041,2]
[341884647,1731267045053,-153.0,0.00025041,2]
[341884648,1731267045062,-212.0390805,0.00025041,2]
[341884649,1731267045072,-212.0390805,0.00025041,2]
[341884650,1731267045081,-249738.59150821,0.0002509,2]
[341884651,1731267045090,-508.64599057,0.00025204,2]
[341884652,1731267045099,-208.56131927,0.00025204,2]
[341884653,1731267045108,-500.0,0.00025204,2]
[341884654,1731267045119,-500.0,0.00025204,2]
[341884655,1731267045134,-500.0,0.00025204,2]
[341884656,1731267045143,-205.01482497,0.00025204,2]
[341884657,1731267045153,-500.0,0.00025205,2]
[341884658,1731267045162,-500.0,0.00025205,2]
[341884659,1731267045171,-500.0,0.00025205,2]
[341884660,1731267045182,-173.05786186,0.00025205,2]
[341884661,1731267045191,-500.0,0.00025205,2]
[341884662,1731267045202,-500.0,0.00025205,2]
[341884663,1731267045212,-500.0,0.00025205,2]
[341884664,1731267045221,-500.0,0.00025205,2]
[341884665,1731267045230,-500.0,0.00025205,2]
[341884666,1731267045239,-500.0,0.00025205,2]
[341884667,1731267045248,-500.0,0.00025205,2]
[341884668,1731267045257,-385.19359295,0.00025205,2]
[341884669,1731267045267,-525.97,0.00025205,2]
[341884670,1731267045276,-500.0,0.00025205,2]
[341884671,1731267045284,-500.0,0.00025205,2]
[341884672,1731267045294,-500.0,0.00025205,2]
[341884673,1731267045303,-500.0,0.00025205,2]
[341884674,1731267045313,-500.0,0.00025205,2]
[341884675,1731267045322,-500.0,0.00025205,2]
[341884676,1731267045332,-500.0,0.00025205,2]
[341884677,1731267045342,-500.0,0.00025205,2]
[341884678,1731267045352,-569.34685226,0.00025205,2]
[341884679,1731267045361,-738.02,0.00025205,2]
[341884680,1731267045371,-500.0,0.00025205,2]
[341884681,1731267045381,-500.0,0.00025205,2]
[341884682,1731267045390,-1516.22,0.00025205,2]
[341884683,1731267045400,-500.0,0.00025205,2]
[341884684,1731267045409,-500.0,0.00025205,2]
[341884685,1731267045419,-544.43641432,0.00025205,2]
[341884686,1731267045429,-568.35922981,0.00025205,2]
[341884687,1731267045438,-500.0,0.00025205,2]
[341884688,1731267045448,-666.35,0.00025205,2]
[341884689,1731267045457,-500.0,0.00025205,2]
[341884690,1731267045467,-540.58,0.00025205,2]
[341884691,1731267045477,-831.86,0.00025205,2]
[341884692,1731267045519,-1751.13,0.00025205,2]
[341884693,1731267045528,-500.0,0.00025205,2]
[341884694,1731267045538,-500.0,0.00025205,2]
[341884695,1731267045547,-500.0,0.00025205,2]
[341884696,1731267045556,-500.0,0.00025205,2]
[341884697,1731267045566,-500.0,0.00025205,2]
[341884698,1731267045574,-556.20741071,0.00025205,2]
[341884699,1731267045584,-500.0,0.00025205,2]
[341884700,1731267045593,-1220.68,0.00025205,2]
[341884701,1731267045603,-500.0,0.00025205,2]
[341884702,1731267045612,-316.66,0.00025205,2]
[341884703,1731267045622,-500.0,0.00025205,2]
[341884704,1731267045631,-500.0,0.00025205,2]
[341884705,1731267045641,-775.0,0.00025205,2]
[341884706,1731267045650,-500.0,0.00025205,2]
[341884707,1731267045661,-641.16,0.00025205,2]
[341884708,1731267045670,-500.0,0.00025205,2]
[341884709,1731267045681,-399.17230441,0.00025205,2]
[341884710,1731267045690,-500.0,0.00025205,2]
[341884711,1731267045700,-500.0,0.00025205,2]
[341884712,1731267045709,-500.0,0.00025205,2]
[341884713,1731267045719,-500.0,0.00025205,2]
[341884714,1731267045729,-398.49773427,0.00025205,2]
[341884715,1731267045739,-2198.96,0.00025205,2]
[341884716,1731267045748,-836.09,0.00025205,2]
[341884717,1731267045757,-153.60144088,0.00025205,2]
[341884718,1731267045767,-500.0,0.00025205,2]
[341884719,1731267045777,-2086.67,0.00025205,2]
[341884720,1731267045787,-500.0,0.00025205,2]
[341884721,1731267045797,-839.83,0.00025205,2]
[341884722,1731267045807,-500.0,0.00025205,2]
[341884723,1731267045817,-500.0,0.00025205,2]
[341884724,1731267045827,-500.0,0.00025205,2]
[341884725,1731267045836,-500.0,0.00025205,2]
[341884726,1731267045846,-500.0,0.00025205,2]
[341884727,1731267045855,-200.0,0.00025205,2]
[341884728,1731267045865,-1127.3,0.00025205,2]
[341884729,1731267045874,-2704.01,0.00025205,2]
[341884730,1731267045883,-500.0,0.00025205,2]
[341884731,1731267045893,-500.0,0.00025205,2]
[341884732,1731267045902,-294.88,0.00025205,2]
[341884733,1731267045912,-965.25,0.00025205,2]
[341884734,1731267045921,-500.0,0.00025205,2]
[341884735,1731267045933,-735.22,0.00025205,2]
[341884736,1731267045942,-3331.53,0.00025205,2]
[341884737,1731267045951,-500.0,0.00025205,2]
[341884738,1731267045960,-570.02,0.00025205,2]
[341884739,1731267045970,-500.0,0.00025205,2]
[341884740,1731267045979,-500.0,0.00025205,2]
[341884741,1731267045988,-4792.36,0.00025205,2]
[341884742,1731267045998,-500.0,0.00025205,2]
[341884743,1731267046008,-500.0,0.00025205,2]
[341884744,1731267046018,-794.69,0.00025205,2]
[341884745,1731267046028,-531.04,0.00025205,2]
[341884746,1731267046038,-767.86,0.00025205,2]
[341884747,1731267046048,-10930.64,0.00025205,2]
[341884748,1731267046058,-500.0,0.00025205,2]
[341884749,1731267046069,-500.0,0.00025205,2]
[341884750,1731267046079,-500.0,0.00025205,2]
[341884751,1731267046088,-1115.55,0.00025205,2]
[341884752,1731267046098,-500.0,0.00025205,2]
[341884753,1731267046108,-500.0,0.00025205,2]
[341884754,1731267046119,-475.80121839,0.00025205,2]
[341884765,1731267046764,-500.0,0.00024657,2]
[341884766,1731267046774,-500.0,0.00024931,2]
[341884767,1731267046783,-735.105315,0.0002509,7]
[341884768,1731267046793,-476.62326414,0.00025205,2]
[341884777,1731267185360,156.318,0.00027,60]
[341884778,1731267186271,259.969,0.00021319,2]
[341884779,1731267188414,187.7865,0.00021319,2]
[341884784,1731267659734,167.678366,0.00013973,2]
[341884785,1731267677167,-500.0,0.000274,120]
[341884786,1731267677197,-500.0,0.000274,120]
[341884787,1731267677222,-500.0,0.000274,120]
[341884788,1731267677247,-500.0,0.000274,120]
[341884789,1731267677271,-500.0,0.000274,120]
[341884790,1731267677295,-500.0,0.000274,120]
[341884791,1731267677320,-500.0,0.000274,120]
[341884792,1731267677346,-204.97,0.000274,120]
[341884793,1731267677368,-500.0,0.000274,120]
[341884794,1731267677392,-500.0,0.000274,120]
[341884795,1731267677416,-500.0,0.000274,120]
[341884796,1731267677443,-500.0,0.000274,120]
[341884797,1731267677466,-500.0,0.000274,120]
[341884798,1731267677487,-500.0,0.000274,120]
[341884799,1731267677508,-285.7,0.000274,120]
[341884800,1731267677541,-200.0,0.00028,120]
[341884801,1731267677562,-200.0,0.00028,120]
[341884802,1731267677610,-1333.0,0.00029041,120]
[341884803,1731267677641,-953.38981487,0.0003,120]
[341884804,1731267677662,-4142.7033346,0.0003,120]
[341884805,1731267678156,-6150.67,0.0003,120]
[341884806,1731267678184,-300.0,0.0003,120]
[341884807,1731267678207,-2271.0,0.0003,120]
[341884808,1731267678229,-151.0,0.0003,120]
[341884809,1731267678251,-151.0,0.0003,120]
[341884810,1731267678274,-156.374,0.0003002,120]
[341884811,1731267678297,-1645.99,0.00030136,120]
[341884812,1731267678320,-1645.99,0.00030136,120]
[341884813,1731267678345,-1038.54285053,0.00030136,120]
[341884814,1731267917936,166.666666,0.00022094,2]
[341884816,1731268003134,24900.0,0.00022102,2]
[341885229,1731268236422,-300.0,0.00022183,2]
[341885231,1731268236432,-300.0,0.00022183,2]
[341885233,1731268236442,-13301.0621741,0.00022184,2]
[341885235,1731268236452,-173.709136,0.00022235,2]
[341885237,1731268236461,-2377.793119,0.00022476,2]
[341885239,1731268236471,-166.666666,0.00022697,2]
[341885241,1731268236480,-366.981794,0.00023024,2]
[341885244,1731268236493,-2377.793119,0.00023161,2]
[341885246,1731268236503,-166.666666,0.00023299,2]
[341885248,1731268236516,-167.678366,0.00023435,2]
[341885250,1731268236525,-2377.793119,0.00023846,2]
[341885252,1731268236535,-2533.69449951,0.00023846,2]
[341885254,1731268236545,-166.666666,0.00023901,2]
[341885256,1731268236555,-8431.22773518,0.00024,2]
[341885258,1731268236565,-153.0,0.00024011,2]
[341885260,1731268236574,-153.0,0.00024011,2]
[341885262,1731268236585,-153.0,0.00024011,2]
[341885264,1731268236595,-153.0,0.00024011,2]
[341885266,1731268236604,-153.0,0.00024011,2]
[341885268,1731268236613,-153.0,0.00024011,2]
[341885270,1731268236623,-153.0,0.00024011,2]
[341885272,1731268236633,-153.0,0.00024011,2]
[341885274,1731268236642,-153.0,0.00024011,2]
[341885276,1731268236652,-153.0,0.00024014,2]
[341885278,1731268236662,-153.0,0.00024014,2]
[341885280,1731268236672,-153.0,0.00024014,2]
[341885282,1731268236681,-153.0,0.00024014,2]
[341885284,1731268236691,-153.0,0.00024014,2]
[341885286,1731268236701,-153.0,0.00024014,2]
[341885288,1731268236710,-2751.83842118,0.00024052,2]
[341885290,1731268236720,-420.0,0.00024101,2]
[341885292,1731268236731,-1309.68442095,0.00024152,2]
[341885295,1731268236743,-6982.49230028,0.00024187,2]
[341885297,1731268236753,-153.0,0.00024219,2]
[341885299,1731268236763,-212.0390805,0.00024219,2]
[341885301,1731268236773,-153.0,0.00024219,2]
[341885303,1731268236782,-212.0390805,0.00024219,2]
[341885305,1731268236792,-212.0390805,0.00024219,2]
[341885307,1731268236801,-212.0390805,0.00024219,2]
[341885309,1731268236811,-212.0390805,0.00024219,2]
[341885311,1731268236820,-212.0390805,0.00024219,2]
[341885313,1731268236830,-212.0390805,0.00024278,2]
[341885315,1731268236840,-420.0,0.00024401,2]
[341885317,1731268236850,-42069.64150577,0.00024408,2]
[341885319,1731268236860,-153.0,0.00024478,2]
[341885321,1731268236870,-212.0390805,0.00024478,2]
[341885323,1731268236879,-166.666666,0.00024504,2]
[341885325,1731268236888,-1000.0,0.00024557,2]
[341885327,1731268236898,-176.81878437,0.00024557,2]
[341885330,1731268236907,-6982.49230028,0.00024632,2]
[341885332,1731268236917,-372.98,0.00024646,3]
[341885334,1731268236926,-186.49,0.00024646,3]
[341885336,1731268236935,-559.51,0.00024646,3]
[341885338,1731268236945,-500.0,0.00024656,2]
[341885340,1731268236954,-500.0,0.00024656,2]
[341885342,1731268236963,-500.0,0.00024656,2]
[341885344,1731268236972,-500.0,0.00024656,2]
[341885346,1731268236981,-500.0,0.00024656,2]
[341885348,1731268236993,-500.0,0.00024656,2]
[341885350,1731268237002,-500.0,0.00024656,2]
[341885352,1731268237012,-500.0,0.00024656,2]
[341885354,1731268237021,-500.0,0.00024656,2]
[341885356,1731268237031,-429.38651352,0.00024656,2]
[341885358,1731268237040,-500.0,0.00024656,2]
[341885360,1731268237050,-500.0,0.00024656,2]
[341885362,1731268237060,-500.0,0.00024656,2]
[341885364,1731268237069,-500.0,0.00024656,2]
[341885366,1731268237079,-500.0,0.00024656,2]
[341885368,1731268237088,-500.0,0.00024656,2]
[341885370,1731268237098,-500.0,0.00024656,2]
[341885372,1731268237108,-500.0,0.00024656,2]
[341885374,1731268237117,-500.0,0.00024656,2]
[341885376,1731268237127,-500.0,0.00024656,2]
[341885377,1731268237158,-500.0,0.00024656,2]
[341885380,1731268237167,-500.0,0.00024656,2]
[341885382,1731268237176,-500.0,0.00024656,2]
[341885384,1731268237186,-500.0,0.00024656,2]
[341885386,1731268237195,-547.84071283,0.00024656,2]
[341885387,1731268237204,-500.0,0.00024656,2]
[341885389,1731268237213,-500.0,0.00024656,2]
[341885391,1731268237223,-500.0,0.00024656,2]
[341885393,1731268237232,-500.0,0.00024656,2]
[341885395,1731268237244,-500.0,0.00024656,2]
[341885397,1731268237253,-500.0,0.00024656,2]
[341885399,1731268237263,-500.0,0.00024656,2]
[341885401,1731268237273,-500.0,0.00024656,2]
[341885403,1731268237282,-500.0,0.00024656,2]
[341885405,1731268237292,-500.0,0.00024656,2]
[341885407,1731268237301,-500.0,0.00024656,2]
[341885409,1731268237311,-500.0,0.00024656,2]
[341885411,1731268237320,-500.0,0.00024656,2]
[341885413,1731268237329,-500.0,0.00024656,2]
[341885414,1731268237338,-500.0,0.00024656,2]
[341885415,1731268237347,-500.0,0.00024656,2]
[341885416,1731268237357,-500.0,0.00024656,2]
[341885417,1731268237366,-500.0,0.00024656,2]
[341885418,1731268237376,-500.0,0.00024656,2]
[341885419,1731268237386,-236.97751266,0.00024656,2]
[341885420,1731268237397,-166.50959834,0.00024656,2]
[341885421,1731268237406,-500.0,0.00024656,2]
[341885422,1731268237416,-500.0,0.00024656,2]
[341885423,1731268237425,-500.0,0.00024656,2]
[341885424,1731268237435,-500.0,0.00024656,2]
[341885425,1731268237445,-500.0,0.00024656,2]
[341885426,1731268237455,-500.0,0.00024656,2]
[341885427,1731268237464,-500.0,0.00024656,2]
[341885428,1731268237473,-500.0,0.00024656,2]
[341885429,1731268237482,-500.0,0.00024656,2]
[341885430,1731268237496,-250.0,0.00024656,2]
[341885431,1731268237508,-500.0,0.00024656,2]
[341885432,1731268237518,-500.0,0.00024656,2]
[341885433,1731268237527,-500.0,0.00024656,2]
[341885434,1731268237537,-500.0,0.00024656,2]
[341885435,1731268237547,-500.0,0.00024656,2]
[341885436,1731268237557,-500.0,0.00024656,2]
[341885437,1731268237567,-500.0,0.00024656,2]
[341885438,1731268237576,-500.0,0.00024656,2]
[341885439,1731268237586,-342.99750141,0.00024656,2]
[341885440,1731268237597,-500.0,0.00024656,2]
[341885442,1731268237606,-500.0,0.00024656,2]
[341885444,1731268237615,-500.0,0.00024656,2]
[341885446,1731268237625,-500.0,0.00024656,2]
[341885448,1731268237635,-211.74589955,0.00024657,2]
[341885450,1731268237645,-370.72893372,0.00024657,2]
[341885451,1731268237655,-500.0,0.00024657,2]
[341885452,1731268237665,-500.0,0.00024657,2]
[341885454,1731268237675,-500.0,0.00024657,2]
[341885455,1731268237685,-500.0,0.00024657,2]
[341885456,1731268237695,-365.20754114,0.00024657,2]
[341885457,1731268237705,-500.0,0.00024657,2]
[341885458,1731268237716,-251.34937098,0.00024657,2]
[341885459,1731268237726,-500.0,0.00024657,2]
[341885460,1731268237740,-500.0,0.00024657,2]
[341885461,1731268237750,-247.40756212,0.00024657,2]
[341885463,1731268237761,-500.0,0.00024657,2]
[341885465,1731268237771,-500.0,0.00024657,2]
[341885466,1731268237781,-500.0,0.00024657,2]
[341885468,1731268237791,-500.0,0.00024657,2]
[341885470,1731268237801,-500.0,0.00024657,2]
[341885471,1731268237811,-500.0,0.00024657,2]
[341885473,1731268237820,-500.0,0.00024657,2]
[341885474,1731268237830,-500.0,0.00024657,2]
[341885475,1731268237840,-500.0,0.00024657,2]
[341885476,1731268237850,-500.0,0.00024657,2]
[341885477,1731268237860,-500.0,0.00024657,2]
[341885478,1731268237869,-456.75363819,0.00024657,2]
[341885479,1731268237880,-500.0,0.00024657,2]
[341885480,1731268237890,-500.0,0.00024657,2]
[341885481,1731268237900,-500.0,0.00024657,2]
[341885482,1731268237910,-500.0,0.00024657,2]
[341885483,1731268237920,-1000.0,0.00024657,2]
[341885484,1731268237930,-500.0,0.00024657,2]
[341885485,1731268237939,-500.0,0.00024657,2]
[341885486,1731268237949,-500.0,0.00024657,2]
[341885487,1731268237958,-368.1618275,0.00024657,2]
[341885488,1731268237972,-131.8381725,0.00024657,2]
[341885489,1731268237982,-500.0,0.00024657,2]
[341885490,1731268237996,-500.0,0.00024657,2]
[341885491,1731268238006,-500.0,0.00024657,2]
[341885492,1731268238015,-500.0,0.00024657,2]
[341885493,1731268238024,-500.0,0.00024657,2]
[341885494,1731268238034,-500.0,0.00024657,2]
[341885495,1731268238043,-500.0,0.00024657,2]
[341885496,1731268238053,-500.0,0.00024657,2]
[341885498,1731268238062,-746.94,0.00024657,2]
[341885500,1731268238072,-500.0,0.00024657,2]
[341885502,1731268238081,-500.0,0.00024657,2]
[341885503,1731268238091,-500.0,0.00024657,2]
[341885504,1731268238100,-500.0,0.00024657,2]
[341885505,1731268238110,-500.0,0.00024657,2]
[341885506,1731268238119,-500.0,0.00024657,2]
[341885507,1731268238128,-1480.95,0.00024657,2]
[341885508,1731268238143,-500.0,0.00024657,2]
[341885510,1731268238152,-500.0,0.00024657,2]
[341885512,1731268238162,-500.0,0.00024657,2]
[341885514,1731268238172,-500.0,0.00024657,2]
[341885515,1731268238181,-500.0,0.00024657,2]
[341885516,1731268238191,-731.05,0.00024657,2]
[341885517,1731268238202,-500.0,0.00024657,2]
[341885518,1731268238212,-500.0,0.00024657,2]
[341885519,1731268238222,-762.54,0.00024657,2]
[341885520,1731268238231,-500.0,0.00024657,2]
[341885521,1731268238246,-1692.77,0.00024657,2]
[341885523,1731268238256,-500.0,0.00024657,2]
[341885525,1731268238266,-500.0,0.00024657,2]
[341885526,1731268238275,-500.0,0.00024657,2]
[341885527,1731268238285,-500.0,0.00024657,2]
[341885528,1731268238294,-253.82,0.00024657,2]
[341885529,1731268238303,-500.0,0.00024657,2]
[341885530,1731268238312,-500.0,0.00024657,2]
[341885531,1731268238322,-1118.95,0.00024657,2]
[341885532,1731268238331,-500.0,0.00024657,2]
[341885533,1731268238340,-500.0,0.00024657,2]
[341885534,1731268238350,-500.0,0.00024657,2]
[341885535,1731268238359,-500.0,0.00024657,2]
[341885536,1731268238369,-408.54176126,0.00024657,2]
[341885537,1731268238378,-500.0,0.00024657,2]
[341885538,1731268238387,-500.0,0.00024657,2]
[341885539,1731268238396,-500.0,0.00024657,2]
[341885540,1731268238406,-240.71928159,0.00024657,2]
[341885541,1731268238415,-500.0,0.00024657,2]
[341885542,1731268238424,-500.0,0.00024657,2]
[341885543,1731268238434,-500.0,0.00024657,2]
[341885544,1731268238443,-633.08,0.00024657,2]
[341885545,1731268238453,-500.0,0.00024657,2]
[341885546,1731268238463,-473.58972281,0.00024657,2]
[341885547,1731268238472,-751.15,0.00024657,2]
[341885548,1731268238481,-500.0,0.00024657,2]
[341885549,1731268238498,-500.0,0.00024657,2]
[341885550,1731268238507,-503.1120676,0.00024657,2]